lending/lending_fUSD_20241120
["ID","MTS","AMOUNT","RATE_DAILY","PERIOD"]
[342768466,1732128251807,-500.0,0.000281,30]
[342768467,1732128251832,-500.0,0.000281,30]
[342768468,1732128251856,-780.82329612,0.000281,30]
[342768469,1732128251880,-1200.0,0.000281,30]
[342768470,1732128251905,-1200.0,0.000281,30]
[342768471,1732128251930,-1200.0,0.000281,30]
[342768472,1732128251953,-1200.0,0.000281,30]
[342768473,1732128251981,-1200.0,0.000281,30]
[342768474,1732128252005,-1200.0,0.000281,30]
[342768475,1732128252035,-1200.0,0.000281,30]
[342768476,1732128252059,-1200.0,0.000281,30]
[342768477,1732128252084,-1200.0,0.000281,30]
[342768478,1732128252108,-1200.0,0.000281,30]
[342768479,1732128252132,-1200.0,0.000281,30]
[342768480,1732128252156,-1200.0,0.000281,30]
[342768481,1732128252180,-1200.0,0.000281,30]
[342768482,1732128252204,-1463.69814505,0.000281,30]
[342768483,1732128252235,-593.94284596,0.00029041,120]
[342768484,1732128252265,-151.0,0.0003,120]
[342768485,1732128252291,-151.0,0.0003,120]
[342768486,1732128252317,-700.0,0.00031,30]
[342768487,1732128252342,-683.72741784,0.00031,30]
[342768488,1732128252366,-700.0,0.00031,30]
[342768489,1732128252390,-700.0,0.00031,30]
[342768490,1732128252612,-700.0,0.00031,30]
[342768491,1732128252638,-700.0,0.00031,30]
[342768492,1732128252664,-700.0,0.00031,30]
[342768493,1732128252690,-700.0,0.00031,30]
[342768494,1732128252724,-700.0,0.00031,30]
[342768495,1732128252750,-700.0,0.00031,30]
[342768496,1732128252775,-700.0,0.00031,30]
[342768497,1732128252801,-700.0,0.00031,30]
[342768498,1732128252826,-700.0,0.00031,30]
[342768499,1732128252851,-500.0,0.00031,30]
[342768500,1732128252881,-919.35942371,0.00031,30]
[342768501,1732128252906,-700.0,0.00031,30]
[342768502,1732128252931,-500.0,0.00031,30]
[342768503,1732128252960,-700.0,0.00031,30]
[342768504,1732128252986,-500.0,0.00031,30]
[342768505,1732128253010,-500.0,0.00031,30]
[342768506,1732128253035,-500.0,0.00031,30]
[342768507,1732128253059,-500.0,0.00031,30]
[342768508,1732128253084,-500.0,0.00031,30]
[342768509,1732128253110,-500.0,0.00031,30]
[342768510,1732128253134,-500.0,0.00031,30]
[342768511,1732128253159,-500.0,0.00031,30]
[342768512,1732128253184,-518.67905015,0.00031,30]
[342768513,1732128253209,-500.0,0.00031,30]
[342768514,1732128253239,-500.0,0.00031,30]
[342768515,1732128253266,-500.0,0.00031,30]
[342768516,1732128253290,-500.0,0.00031,30]
[342768517,1732128253315,-500.0,0.00031,30]
[342768518,1732128253342,-500.0,0.00031,30]
[342768519,1732128253367,-500.0,0.00031,30]
[342768520,1732128253392,-500.0,0.00031,30]
[342768521,1732128253417,-500.0,0.00031,30]
[342768522,1732128253441,-500.0,0.00031,30]
[342768523,1732128253465,-500.0,0.00031,30]
[342768524,1732128253494,-500.0,0.00031,30]
[342768525,1732128253520,-500.0,0.00031,30]
[342768526,1732128253546,-500.0,0.00031,30]
[342768527,1732128253571,-500.0,0.00031,30]
[342768528,1732128253596,-1200.0,0.00031,30]
[342768529,1732128253621,-500.0,0.00031,30]
[342768530,1732128253647,-500.0,0.00031,30]
[342768531,1732128253672,-500.0,0.00031,30]
[342768532,1732128253697,-1200.0,0.00031,30]
[342768533,1732128253728,-500.0,0.00031,30]
[342768534,1732128253760,-1200.0,0.00031,30]
[342768535,1732128253785,-500.0,0.00031,30]
[342768536,1732128253810,-1200.0,0.00031,30]
[342768537,1732128253835,-1200.0,0.00031,30]
[342768538,1732128253861,-500.0,0.00031,30]
[342768539,1732128253886,-1200.0,0.00031,30]
[342768540,1732128253911,-1200.0,0.00031,30]
[342768541,1732128253937,-1200.0,0.00031,30]
[342768542,1732128253963,-1200.0,0.00031,30]
[342768543,1732128253994,-1200.0,0.00031,30]
[342768544,1732128254019,-1200.0,0.00031,30]
[342768545,1732128254044,-1200.0,0.00031,30]
[342768546,1732128254068,-1200.0,0.00031,30]
[342768547,1732128254094,-1200.0,0.00031,30]
[342768548,1732128254119,-1200.0,0.00031,30]
[342768549,1732128254144,-277.95604525,0.000314,30]
[342768550,1732128254170,-509.765554,0.00032997,120]
[342768551,1732128254196,-719.61,0.00033151,120]
[342768552,1732128254224,-156.46,0.000335,31]
[342768553,1732128254252,-156.46,0.000335,31]
[342768554,1732128254277,-150.0,0.00034,60]
[342768555,1732128254302,-1003.0,0.000342,30]
[342768556,1732128254327,-600.0,0.000342,120]
[342768557,1732128254353,-151.0,0.00034274,120]
[342768558,1732128254385,-1080.921,0.00034999,40]
[342768559,1732128254410,-1543.56185519,0.00035,30]
[342768560,1732128254436,-3219.32395702,0.00035,120]
[342768561,1732128254462,-1500.0,0.00035616,120]
[342768562,1732128254490,-421.93189667,0.00035726,30]
[342768563,1732128254515,-421.93189667,0.00036009,30]
[342768564,1732128254541,-421.93189667,0.00036209,30]
[342768565,1732128254570,-421.93189667,0.00036498,30]
[342768566,1732128254597,-421.93189667,0.00036937,30]
[342768567,1732128254623,-421.93189667,0.00037078,30]
[342768568,1732128254655,-421.93189667,0.00037505,30]
[342768569,1732128254683,-421.93189667,0.00037598,30]
[342768570,1732128254711,-1088.53870169,0.00038,120]
[342768571,1732128254744,-435.17586997,0.00038,120]
[342768572,1732128254771,-421.93189667,0.00038012,30]
[342768573,1732128254798,-421.93189667,0.00038087,30]
[342768574,1732128254825,-1003.51718195,0.000384,30]
[342768575,1732128255308,-151.0,0.00038548,120]
[342768576,1732128255335,-421.93189667,0.00038571,30]
[342768577,1732128255362,-421.93189667,0.00038819,30]
[342768578,1732128255386,-154.26599964,0.00039,120]
[342768579,1732128255410,-421.93189667,0.00039049,30]
[342768580,1732128255434,-500.0,0.00039142,120]
[342768581,1732128255458,-995.86,0.00039155,35]
[342768582,1732128255485,-421.93189667,0.00039236,30]
[342768583,1732128255509,-150.0,0.000394,120]
[342768584,1732128255534,-421.93189667,0.00039598,30]
[342768585,1732128255559,-421.93189667,0.00039777,30]
[342768586,1732128255584,-1236.771,0.0003985,30]
[342768587,1732128255609,-5000.0,0.000399,45]
[342768588,1732128255636,-1088.53870169,0.0004,120]
[342768589,1732128255660,-435.17586997,0.0004,120]
[342768590,1732128255685,-477.12749073,0.0004,30]
[342768591,1732128255710,-320.98177848,0.0004,30]
[342768592,1732128255734,-1503.04771359,0.0004,30]
[342768593,1732128255759,-1491.97933144,0.0004,30]
[342768594,1732128255784,-283.81354856,0.0004,120]
[342768595,1732128255809,-191.60855189,0.0004,30]
[342768596,1732128255833,-1180.53465184,0.0004,120]
[342768597,1732128255858,-473.71627468,0.0004,120]
[342768598,1732128255883,-640.6975596,0.0004,30]
[342768599,1732128255917,-2038.87010773,0.0004,120]
[342768600,1732128255947,-311.36,0.00040055,42]
[342768601,1732128255979,-421.93189667,0.00040201,30]
[342768602,1732128256006,-421.93189667,0.00040276,30]
[342768603,1732128256033,-866.06741391,0.00040385,30]
[342768604,1732128256060,-995.86,0.0004046,45]
[342768605,1732128256086,-1656.96340421,0.000405,120]
[342768606,1732128256114,-421.93189676,0.00040724,30]
[342768607,1732128256143,-271.3301357,0.00040998,120]
[342768608,1732128256169,-1665.04029433,0.00040999,30]
[342768609,1732128256195,-1867201.26760615,0.00041,60]
[342768610,1732128263509,-772.459,0.0004018,60]
[342768611,1732128263550,-1999227.541,0.00041,60]
[342768612,1732128268878,-1187940.85139385,0.00041,60]
[342768613,1732128268903,-361.27159968,0.00041,120]
[342768614,1732128268928,-3006.2847256,0.00041,60]
[342768615,1732128269388,-860.37806878,0.00041,60]
[342768616,1732128269414,-3573.0,0.00041,117]
[342768617,1732128269439,-500.0,0.00041,60]
[342768618,1732128269462,-150.0,0.00041,60]
[342768619,1732128269495,-1000.0,0.00041014,120]
[342768620,1732128269521,-1000.0,0.00041096,120]
[342768621,1732128269550,-156.46,0.000417,31]
[342768622,1732128269576,-156.46,0.000417,31]
[342768623,1732128269605,-156.46,0.000417,31]
[342768624,1732128269633,-156.46,0.000417,31]
[342768625,1732128269657,-311.36,0.0004175,55]
[342768626,1732128269683,-1188.03876,0.00041765,55]
[342768627,1732128269715,-203.7158,0.00041888,30]
[342768628,1732128269743,-1000.0,0.00041918,120]
[342768629,1732128269769,-418.0,0.00042,120]
[342768630,1732128269795,-448.72375041,0.00042,120]
[342768631,1732128269822,-7988.51710183,0.00042,120]
[342768632,1732128269849,-55198.99389028,0.00042,30]
[342768633,1732128269876,-734225.02490957,0.00042,30]
[342768634,1732128278531,-734.4,0.0004018,60]
[342768635,1732128278571,-475690.48647963,0.00042,30]
[342768636,1732128278598,-400.0,0.00042,120]
[342768637,1732128278625,-150.0,0.00042,30]
[342768638,1732128278651,-500.0,0.00042,120]
[342768639,1732128278676,-150.0,0.00042,120]
[342768640,1732128278702,-1900.0,0.0004229,60]
[342768641,1732128278726,-500.0,0.0004229,60]
[342768642,1732128278753,-3300.0,0.0004229,60]
[342768643,1732128278778,-1700.0,0.0004229,60]
[342768644,1732128278803,-1000.0,0.0004274,120]
[342768645,1732128278828,-845.66820237,0.000428,120]
[342768646,1732128278855,-151.0,0.00042822,120]
[342768647,1732128278880,-1900.0,0.00042838,60]
[342768648,1732128278905,-500.0,0.00042838,60]
[342768649,1732128278930,-3300.0,0.00042838,60]
[342768650,1732128278954,-1700.0,0.00042838,60]
[342768651,1732128278979,-289983.74780884,0.00043,30]
[342768652,1732128279007,-4267.2138684,0.00043,30]
[342768653,1732128279030,-1358.0,0.00043,120]
[342768654,1732128279056,-2177.07740337,0.00043,120]
[342768655,1732128279081,-870.35173993,0.00043,120]
[342768656,1732128279105,-187.15,0.00043014,120]
[342768657,1732128279129,-3931.4,0.00043034,117]
[342768658,1732128279153,-968.98,0.00043055,30]
[342768659,1732128279178,-968.98,0.00043137,30]
[342768660,1732128279201,-968.98,0.00043137,30]
[342768661,1732128279226,-968.98,0.00043137,30]
[342768662,1732128279254,-968.98,0.00043219,30]
[342768663,1732128279278,-466.446,0.0004326,100]
[342768664,1732128279303,-1900.0,0.00043386,60]
[342768665,1732128279328,-500.0,0.00043386,60]
[342768666,1732128279351,-3300.0,0.00043386,60]
[342768667,1732128279379,-1700.0,0.00043386,60]
[342768668,1732128279403,-311.36,0.00043445,68]
[342768669,1732128279429,-1000.0,0.00043562,120]
[342768670,1732128279453,-61158.95210555,0.000437,120]
[342768671,1732128279481,-487.8014132,0.000438,120]
[342768672,1732128279521,-470.37912,0.000438,30]
[342768673,1732128279550,-3000.0,0.00043835,120]
[342768674,1732128281150,150.0,0.0004229,60]
[342768675,1732128281226,500.0,0.0004229,60]
[342768676,1732128281487,150.0,0.0004274,120]
[342768677,1732128281516,500.0,0.0004274,120]
[342768678,1732128281694,500.0,0.000428,120]
[342768679,1732128281739,150.0,0.000428,120]
[342768680,1732128281929,500.0,0.00042822,120]
[342768681,1732128281972,150.0,0.00042822,120]
[342768682,1732128282054,500.0,0.00042838,60]
[342768683,1732128282085,150.0,0.00042838,60]
[342768684,1732128282120,500.0,0.0004229,60]
[342768685,1732128282185,150.0,0.000427,120]
[342768686,1732128282220,500.0,0.00043,30]
[342768687,1732128282526,500.0,0.0004274,120]
[342768688,1732128282587,500.0,0.00043014,120]
[342768689,1732128282694,150.0,0.00043,30]
[342768690,1732128282739,150.0,0.00042722,120]
[342768691,1732128282846,500.0,0.000428,120]
[342768692,1732128282893,150.0,0.00043014,120]
[342768693,1732128283011,500.0,0.00043034,117]
[342768694,1732128283340,500.0,0.00042822,120]
[342768695,1732128283440,500.0,0.00043055,30]
[342768696,1732128283867,968.98,0.00043219,30]
[342768697,1732128283897,500.0,0.00043137,30]
[342768698,1732128283944,500.0,0.00042838,60]
[342768699,1732128284228,179.022,0.00043055,30]
[342768700,1732128284291,500.0,0.00043219,30]
[342768701,1732128284721,500.0,0.0004326,100]
[342768702,1732128285125,500.0,0.00043386,60]
[342768703,1732128285656,500.0,0.00043445,68]
[342768704,1732128286037,500.0,0.00043562,120]
[342768705,1732128286139,151.0,0.00043445,30]
[342768706,1732128286460,500.0,0.000437,120]
[342768707,1732128286871,500.0,0.000438,120]
[342768708,1732128287312,500.0,0.00043835,120]
[342768710,1732128443142,-250.0,8.778e-05,2]
[342768711,1732128443164,-193.4844547,8.81e-05,2]
[342768712,1732128452379,-114.4855453,8.81e-05,2]
[342768713,1732128452400,-250.0,8.831e-05,2]
[342768714,1732128452420,-151.33,8.842e-05,2]
[342768715,1732128452440,-250.0,8.874e-05,2]
[342768716,1732128452463,-1000.0,8.883e-05,2]
[342768717,1732128452483,-450.0,8.902e-05,2]
[342768718,1732128452502,-404.84,8.902e-05,2]
[342768719,1732128452523,-2636.45,8.933e-05,2]
[342768720,1732128452544,-417.46,8.951e-05,2]
[342768721,1732128452564,-150.0,8.986e-05,2]
[342768722,1732128452585,-300.0,8.987e-05,2]
[342768723,1732128452608,-504.63889898,8.988e-05,2]
[342768726,1732128548096,-302.69,8.966e-05,2]
[342768727,1732128548117,-1930.80427285,8.988e-05,2]
[342768728,1732128549697,-571.55682817,8.988e-05,2]
[342768735,1732128588126,1805.59,8.219e-05,2]
[342768737,1732128619478,250.0,8.94e-05,2]
[342768749,1732128632968,-166.84,9.014e-05,2]
[342768750,1732128632977,-167.68,9.186e-05,2]
[342768751,1732128632987,-800.0,9.3e-05,3]
[342768752,1732128632996,-159.81,9.366e-05,2]
[342768753,1732128633006,-1600.0,9.4e-05,3]
[342768754,1732128633015,-2205.05300325,9.5e-05,3]
[342768755,1732128633027,-294.94699675,9.5e-05,3]
[342768756,1732128633037,-6961.57798889,9.59e-05,2]
[342768757,1732128633046,-1000.0,9.599e-05,2]
[342768758,1732128633055,-150.0,9.599e-05,2]
[342768759,1732128633065,-300.0,9.599e-05,2]
[342768760,1732128633074,-4193.47501436,9.6e-05,2]
[342768761,1732128633086,-2373.60843279,9.6e-05,2]
[342768762,1732128633137,-49.27605056,9.6e-05,2]
[342768763,1732128633258,-3414.68416714,9.6e-05,2]
[342768764,1732128633270,-559.35,9.6e-05,2]
[342768765,1732128634706,632.22,8.921e-05,2]
[342768797,1732128638123,-500.0,9.6e-05,2]
[342768799,1732128638339,-51504.81453515,9.6e-05,2]
[342768800,1732128638349,-48359.8863,9.6e-05,2]
[342768801,1732128638364,-3300.0,9.6e-05,3]
[342768802,1732128638374,-4200.0,9.7e-05,3]
[342768803,1732128638384,-800.0,9.8e-05,3]
[342768804,1732128638395,-5285.0,9.801e-05,2]
[342768805,1732128638407,-250.0,9.89e-05,2]
[342768806,1732128638416,-2022.913,9.899e-05,2]
[342768807,1732128638425,-5822.0331,9.9e-05,2]
[342768808,1732128638437,-2500.0,9.9e-05,2]
[342768809,1732128638447,-800.0,9.9e-05,3]
[342768810,1732128638457,-150.0,9.907e-05,2]
[342768811,1732128638467,-170.529,9.993e-05,2]
[342768812,1732128638478,-1000.0,9.993e-05,2]
[342768813,1732128638488,-364.22039081,9.999e-05,2]
[342768814,1732128638498,-50000.0,9.999e-05,2]
[342768815,1732128638508,-1080.921,9.999e-05,2]
[342768816,1732128638518,-3060.20601828,9.999e-05,2]
[342768817,1732128638528,-500.0,0.0001,2]
[342768818,1732128638538,-463479.71406604,0.0001,2]
[342768819,1732128638550,-747189.83189708,0.0001,2]
[342768820,1732128638561,-374.27943424,0.0001,2]
[342768821,1732128638591,-1764.8379986,0.0001,2]
[342768822,1732128638603,-6350.35037594,0.0001,2]
[342768823,1732128638615,-456.41391056,0.0001,2]
[342768824,1732128638627,-14646.91400225,0.0001,2]
[342768825,1732128638639,-5254.67305374,0.0001,2]
[342768826,1732128638653,-21335.62562392,0.0001,2]
[342768827,1732128638691,-2990.38609666,0.0001,2]
[342768854,1732128640230,-6635.0989993,0.0001,2]
[342768855,1732128640242,-18846.1995558,0.0001,2]
[342768862,1732128640419,-465.72000016,0.0001,2]
[342768868,1732128644558,-56211.14168859,0.0001,2]
[342768872,1732128644730,-5789463.3870025,0.0001,2]
[342768873,1732128644741,-53808.62922,0.0001,2]
[342768874,1732128644753,-4572.61271276,0.0001,2]
[342768875,1732128644768,-11029.55038023,0.0001,2]
[342768876,1732128644779,-457.765,0.0001,2]
[342768877,1732128644791,-4661.9,0.0001,2]
[342768878,1732128644823,-73.84540502,0.0001,2]
[342768879,1732128644834,-1646.99132181,0.0001,2]
[342768880,1732128644913,-7245.07847475,0.0001,2]
[342768881,1732128644925,-2621.27104234,0.0001,2]
[342768882,1732128644937,-2675.682197,0.0001,2]
[342768883,1732128644949,-928.309166,0.0001,2]
[342768884,1732128644961,-52712.27990505,0.0001,2]
[342768895,1732128646295,-4494.49,9.723e-05,2]
[342768896,1732128646306,-182.11019541,9.999e-05,2]
[342768897,1732128646317,-27287.3998046,0.0001,2]
[342768898,1732128646329,-964.66585771,0.0001,2]
[342768899,1732128646341,-1259.37702946,0.0001,2]
[342768900,1732128646355,-970.04949883,0.0001,2]
[342768901,1732128646366,-554.3103768,0.0001,2]
[342768905,1732128647287,-135.96836081,0.0001,2]
[342768906,1732128647298,-3049.49893999,0.0001,2]
[342768907,1732128647391,-1417.8766838,0.0001,2]
[342768908,1732128647405,-283.83765539,0.0001,2]
[342768910,1732128999813,150.0,9e-05,3]
[342768911,1732129276418,1760.4,8.219e-05,2]
[342768912,1732129506430,173.39,7.201e-05,2]
[342768913,1732129638147,-188.89905551,8.685e-05,2]
[342768914,1732129640112,-1811.10094449,8.685e-05,2]
[342768915,1732129640135,-250.0,8.715e-05,2]
[342768916,1732129640158,-150.15,8.839e-05,2]
[342768917,1732129640186,-150.15,8.848e-05,2]
[342768918,1732129640211,-150.15,8.857e-05,2]
[342768919,1732129640233,-119.10329145,8.866e-05,2]
[342768920,1732129748102,-3889.88,8.775e-05,2]
[342768921,1732129748126,-7930.64830968,8.82e-05,2]
[342768922,1732129756108,-8700.96064199,8.82e-05,2]
[342768923,1732129756138,-7268.39104833,8.82e-05,2]
[342768924,1732129756162,-31.04670855,8.866e-05,2]
[342768925,1732129756186,-150.15,8.875e-05,2]
[342768926,1732129756208,-1702.81,8.876e-05,2]
[342768927,1732129756230,-150.15,8.883e-05,2]
[342768928,1732129756252,-757.84,8.904e-05,2]
[342768929,1732129756276,-166.57,8.953e-05,2]
[342768930,1732129756297,-250.0,8.956e-05,2]
[342768931,1732129756319,-479.3,8.991e-05,2]
[342768941,1732129832538,-452.28092164,9.009e-05,2]
[342768942,1732129832548,-482.72281649,9.027e-05,2]
[342768943,1732129832645,-517.27718351,9.027e-05,2]
[342768944,1732129832655,-250.0,9.066e-05,2]
[342768945,1732129832665,-600.0,9.5e-05,3]
[342768946,1732129832675,-400.0,9.6e-05,2]
[342768947,1732129832685,-1300.0,9.6e-05,3]
[342768948,1732129832696,-2000.0,9.7e-05,3]
[342768949,1732129832707,-864.737,9.781e-05,2]
[342768950,1732129832717,-170.529,9.781e-05,2]
[342768951,1732129832727,-300.0,9.798e-05,2]
[342768952,1732129832738,-747.92681649,9.799e-05,2]
[342768955,1732129838326,-252.07318351,9.799e-05,2]
[342768956,1732129838335,-150.0,9.799e-05,2]
[342768957,1732129838345,-13846.8871,9.8e-05,2]
[342768958,1732129838354,-42501.0096,9.8e-05,2]
[342768959,1732129838363,-2700.0,9.8e-05,3]
[342768960,1732129838373,-530.40675251,9.8e-05,2]
[342768961,1732129838383,-298.86632093,9.873e-05,2]
[342768962,1732129838392,-500.0,9.873e-05,2]
[342768963,1732129838402,-500.0,9.873e-05,2]
[342768965,1732129838411,-159.73727146,9.873e-05,2]
[342768966,1732129838421,-160.63067636,9.873e-05,2]
[342768967,1732129838430,-500.0,9.873e-05,2]
[342768968,1732129838439,-250.0,9.89e-05,2]
[342768969,1732129838449,-2138.680204,9.899e-05,2]
[342768970,1732129838460,-536.0,9.899e-05,2]
[342768971,1732129838591,-10258.20009994,9.899e-05,2]
[342768972,1732129838602,-458.4957736,9.899e-05,2]
[342768973,1732129838613,-22879.78142246,9.899e-05,2]
[342768974,1732129838622,-4718.20763733,9.899e-05,2]
[342768975,1732129838708,-606.7845,9.899e-05,2]
[342768976,1732129838719,-1159.98,9.899e-05,2]
[342768977,1732129838767,-27138.06006267,9.899e-05,2]
[342768978,1732129838777,-3701.3287,9.899e-05,2]
[342768979,1732129838787,-415.8954,9.899e-05,2]
[342768980,1732129838796,-118473.1885,9.9e-05,2]
[342768981,1732129838805,-530.40675252,9.9e-05,2]
[342768982,1732129838815,-2500.0,9.9e-05,2]
[342768983,1732129838826,-3300.0,9.9e-05,3]
[342768984,1732129838835,-150.0,9.901e-05,2]
[342768985,1732129838845,-27661.21647104,9.91e-05,2]
[342768986,1732129838854,-273.16529311,9.999e-05,2]
[342768987,1732129838864,-544.0,0.0001,2]
[342768988,1732129838873,-4895477.1574501,0.0001,2]
[342769139,1732129840453,-936.1431586,0.0001,2]
[342769141,1732129840464,-11262.59960315,0.0001,2]
[342769321,1732129843403,-587.0,0.0001,2]
[342769322,1732129843413,-1273.85999379,0.0001,2]
[342769323,1732129843591,-2946.300698,0.0001,2]
[342769324,1732129843603,-4634.19695813,0.0001,2]
[342769332,1732129843747,-1699.36013934,0.0001,2]
[342769334,1732129843759,-7684.92188893,0.0001,2]
[342769409,1732129846744,-598.71099532,0.0001,2]
[342769410,1732129846771,-370.58734935,0.0001,2]
[342769411,1732129846887,-20.9887839,0.0001,2]
[342769412,1732129846899,-11123.96755,0.0001,2]
[342769413,1732129846911,-2577.5806527,0.0001,2]
[342769414,1732129846922,-383.9377928,0.0001,2]
[342769415,1732129846935,-538.29224632,0.0001,2]
[342769416,1732129960116,161.4,8.219e-05,2]
[342769417,1732130080668,1672.38,8.219e-05,2]
[342769418,1732130180375,185.64,7.423e-05,2]
[342769419,1732130690717,-3609.342992,8.798e-05,2]
[342769420,1732130690740,-728.657008,8.842e-05,2]
[342769421,1732130748126,-159.81779418,8.775e-05,2]
[342769422,1732130762548,1500.0,0.00025,120]
[342769423,1732130838291,-340.18220582,8.775e-05,2]
[342769424,1732130838315,-250.50932095,8.842e-05,2]
[342769425,1732130853104,-20.83367105,8.842e-05,2]
[342769426,1732130853128,-250.0,8.904e-05,2]
[342769427,1732130853150,-250.0,8.904e-05,2]
[342769428,1732130853173,-300.0,8.979e-05,2]
[342769429,1732130853196,-15473.40924169,8.98e-05,2]
[342769430,1732130876145,1629.33,8.219e-05,2]
[342769431,1732130948091,-1925.45,8.762e-05,2]
[342769432,1732130948119,-250.0,8.875e-05,2]
[342769433,1732130948150,-154.898762,8.98e-05,2]
[342769434,1732130955430,-5256.27199631,8.98e-05,2]
[342769435,1732130955452,-1153.03224682,9e-05,2]
[342769436,1732130959362,185.64,7.117e-05,2]
[342769437,1732130964150,-170.35107523,9e-05,2]
[342769456,1732131031514,-638.93927412,9.005e-05,2]
[342769459,1732131031864,-610.0,9.005e-05,2]
[342769460,1732131031875,-753.28072588,9.005e-05,2]
[342769461,1732131031884,-393.72,9.184e-05,2]
[342769462,1732131031894,-158.63,9.235e-05,2]
[342769463,1732131031903,-158.63,9.258e-05,2]
[342769464,1732131031912,-158.63,9.281e-05,2]
[342769465,1732131031921,-180.54,9.443e-05,2]
[342769466,1732131031931,-153.0,9.446e-05,2]
[342769467,1732131031939,-153.0,9.514e-05,2]
[342769468,1732131031949,-150.0,9.629e-05,2]
[342769469,1732131031958,-161.75,9.677e-05,2]
[342769470,1732131031967,-300.0,9.699e-05,2]
[342769471,1732131031976,-11260.41823378,9.7e-05,2]
[342769472,1732131031988,-2849.63576622,9.7e-05,2]
[342769473,1732131031997,-2500.0,9.7e-05,2]
[342769474,1732131032006,-162.84,9.733e-05,2]
[342769475,1732131032016,-500.0,9.773e-05,2]
[342769476,1732131032025,-4338.0,9.79e-05,2]
[342769477,1732131032034,-691.789,9.799e-05,2]
[342769478,1732131032043,-150.0,9.799e-05,2]
[342769479,1732131032053,-3281.09744335,9.8e-05,2]
[342769482,1732131032066,-5200.77,9.8e-05,2]
[342769493,1732131032173,-46665.66775437,9.8e-05,2]
[342769495,1732131032185,-1238.25,9.8e-05,2]
[342769497,1732131032195,-3200.0,9.8e-05,2]
[342769499,1732131032207,-286.33602512,9.8e-05,2]
[342769752,1732131037563,-4524.759264,9.8e-05,2]
[342769753,1732131037576,-452.33,9.8e-05,2]
[342769754,1732131037676,-8865.60071316,9.8e-05,2]
[342769755,1732131037685,-4821.3468,9.8e-05,2]
[342769756,1732131037695,-16722.15129642,9.8e-05,2]
[342769757,1732131037706,-2985.6761671,9.8e-05,2]
[342769758,1732131037717,-4691.43790642,9.8e-05,2]
[342769759,1732131037934,-33948.99653006,9.8e-05,2]
[342769760,1732131037944,-286314.4992,9.8e-05,2]
[342769761,1732131037955,-668.1892,9.8e-05,2]
[342769762,1732131037965,-22510.51812381,9.8e-05,2]
[342769763,1732131037977,-205.0,9.8e-05,2]
[342769764,1732131037986,-9553.0,9.801e-05,2]
[342769765,1732131037996,-250.0,9.89e-05,2]
[342769766,1732131038007,-1000.0,9.948e-05,2]
[342769767,1732131038018,-273.1652931,9.999e-05,2]
[342769768,1732131038027,-580.0,0.0001,2]
[342769770,1732131038037,-638602.48928897,0.0001,2]
[342769772,1732131038047,-1000.0,0.0001,2]
[342769774,1732131038056,-1000.0,0.0001,2]
[342769776,1732131038069,-2000.0,0.0001,2]
[342769777,1732131038083,-200.0,0.0001,2]
[342769778,1732131038092,-171.06090755,0.0001,2]
[342769779,1732131038102,-2000.0,0.0001,2]
[342769780,1732131038112,-200.0,0.0001,2]
[342769781,1732131038121,-166.82955001,0.0001,2]
[342769782,1732131038130,-2000.0,0.0001,2]
[342769783,1732131038139,-200.0,0.0001,2]
[342769784,1732131038150,-988.65512134,0.0001,2]
[342769785,1732131038160,-3000.0,0.0001,2]
[342769786,1732131038171,-1210.61123094,0.0001,2]
[342769787,1732131038180,-50646715.59927092,0.0001,2]